bitfinex/quotes_BTCUSD_20220304
["timestamp","ask_amount","ask_price","bid_price","bid_amount"]
[1646389560340,0.19272358,41621.0,41618.0,0.120211]
[1646389560740,0.44658538,41625.0,41618.0,0.120211]
[1646389560741,0.24715448,41622.0,41618.0,0.120211]
[1646389560994,0.24715448,41623.0,41618.0,0.120211]
[1646389561192,0.365885,41622.0,41618.0,0.120211]
[1646389561395,0.24715448,41622.0,41618.0,0.120211]
[1646389562292,0.365885,41621.0,41618.0,0.120211]
[1646389562693,0.24715448,41622.0,41618.0,0.120211]
[1646389563693,0.24715448,41623.0,41618.0,0.120211]
[1646389564491,0.365885,41622.0,41618.0,0.120211]
[1646389564947,0.23715448,41623.0,41618.0,0.120211]
[1646389565148,0.365885,41624.0,41618.0,0.120211]
[1646389565950,0.365885,41624.0,41618.0,0.27988558]
[1646389566152,0.365885,41624.0,41618.0,0.120211]
[1646389567152,0.29658538,41625.0,41618.0,0.120211]
[1646389567349,0.29658538,41624.0,41618.0,0.120211]
[1646389568353,0.34658538,41625.0,41618.0,0.120211]
[1646389569000,0.05,41625.0,41618.0,0.120211]
[1646389569401,0.26445199,41617.0,41609.0,0.89]
[1646389569595,0.26445199,41617.0,41613.0,0.01729792]
[1646389569596,0.53700737,41617.0,41613.0,0.01729792]
[1646389569795,0.53700737,41617.0,41609.0,0.47]
[1646389570395,0.19790023,41612.0,41609.0,0.47]
[1646389570597,0.19790023,41611.0,41609.0,0.530114]
[1646389571399,0.19790023,41612.0,41609.0,0.530114]
[1646389573171,0.19790023,41613.0,41609.0,0.530114]
[1646389574176,0.19790023,41613.0,41611.0,0.16753848]
[1646389574573,0.24735995,41616.0,41611.0,0.16753848]
[1646389574574,0.19790023,41614.0,41611.0,0.16753848]
[1646389575377,0.19790023,41613.0,41611.0,0.16753848]
[1646389575573,0.19790023,41614.0,41611.0,0.16753848]
[1646389575774,0.19790023,41614.0,41611.0,0.20726412]
[1646389576590,0.19790023,41614.0,41613.0,0.16004129]
[1646389576793,0.19790023,41615.0,41613.0,0.23068988]
[1646389577393,0.19790023,41614.0,41613.0,0.23068988]
[1646389577592,0.19790023,41615.0,41613.0,0.23068988]
[1646389577793,0.43832222,41617.0,41614.0,0.4835603]
[1646389577991,0.24042199,41617.0,41614.0,0.4835603]
[1646389578194,0.24735995,41622.0,41614.0,0.4835603]
[1646389578391,0.24735995,41623.0,41621.0,0.1648236]
[1646389581843,0.24735995,41625.0,41622.0,0.47552522]
[1646389582045,0.24735995,41626.0,41622.0,0.4114499]
[1646389582242,0.29658538,41630.0,41623.0,0.55]
[1646389582442,0.29658538,41631.0,41627.0,0.25531961]
[1646389582643,0.365885,41630.0,41623.0,0.0481]
[1646389582846,0.29658538,41631.0,41623.0,0.0481]
[1646389583142,0.389915,41630.0,41623.0,0.0481]
[1646389583343,0.29658538,41630.0,41623.0,0.0481]
[1646389583595,0.29658538,41630.0,41625.0,0.23236026]
[1646389583795,0.29658538,41630.0,41626.0,0.060088]
[1646389584195,0.29658538,41631.0,41626.0,0.060088]
[1646389584597,0.365885,41630.0,41626.0,0.060088]
[1646389584799,0.365885,41629.0,41626.0,0.060088]
[1646389585095,0.365885,41630.0,41626.0,0.060088]
[1646389585295,0.66247038,41630.0,41626.0,0.060088]
[1646389585497,0.29658538,41630.0,41626.0,0.060088]
[1646389585696,0.29658538,41631.0,41626.0,0.060088]
[1646389586096,0.66247038,41630.0,41626.0,0.060088]
[1646389586497,0.365885,41630.0,41626.0,0.060088]
[1646389586898,0.66247038,41630.0,41626.0,0.060088]
[1646389587848,0.365885,41629.0,41626.0,0.060088]
[1646389588050,0.29658538,41631.0,41626.0,0.060088]
[1646389588448,0.365885,41630.0,41626.0,0.060088]
[1646389588650,0.29658538,41631.0,41626.0,0.060088]
[1646389588849,0.365885,41630.0,41626.0,0.060088]
[1646389589249,0.29658538,41631.0,41626.0,0.060088]
[1646389589449,1e-06,41625.0,41624.0,0.17072301]
[1646389589754,0.19793581,41625.0,41623.0,0.0481]
[1646389590553,0.19793581,41625.0,41623.0,0.108191]
[1646389590753,0.19793481,41624.0,41623.0,0.060091]
[1646389591006,1e-06,41625.0,41623.0,0.060091]
[1646389591409,0.2474277,41628.0,41623.0,0.060091]
[1646389591607,0.2474277,41630.0,41626.0,0.24848952]
[1646389591810,0.2474277,41630.0,41627.0,0.17751476]
[1646389593012,0.2474277,41630.0,41627.0,0.23759676]
[1646389593613,0.2474277,41631.0,41627.0,0.060082]
[1646389593811,0.2474277,41630.0,41627.0,0.060082]
[1646389594614,0.2474277,41631.0,41627.0,0.060082]
[1646389596047,0.29658538,41633.0,41627.0,0.060082]
[1646389596446,0.365885,41632.0,41627.0,0.060082]
[1646389596648,0.29658538,41633.0,41627.0,0.060082]
[1646389598497,0.365885,41632.0,41627.0,0.060082]
[1646389598703,0.365885,41633.0,41627.0,0.060082]
[1646389598899,0.29658538,41633.0,41627.0,0.060082]
[1646389599998,0.29758538,41634.0,41627.0,0.060082]
[1646389600201,0.001,41634.0,41627.0,0.060082]
[1646389600601,0.001,41634.0,41628.0,0.23058876]
[1646389600801,0.36300726,41635.0,41628.0,0.25558876]
[1646389601003,0.29658538,41636.0,41633.0,0.2116948]
[1646389601202,0.365885,41635.0,41633.0,0.2116948]
[1646389601603,0.365885,41635.0,41632.0,0.060076]
[1646389601803,0.72905668,41635.0,41632.0,0.060076]
[1646389602649,0.365885,41635.0,41632.0,0.060076]
[1646389605051,0.24738093,41634.0,41632.0,0.060076]
[1646389605251,0.29658538,41636.0,41631.0,0.120152]
[1646389605252,0.61326593,41633.0,41631.0,0.120152]
[1646389605651,0.61326593,41633.0,41621.0,0.06008]
[1646389605850,0.24738093,41633.0,41628.0,0.05]
[1646389606091,0.24738093,41633.0,41624.0,0.13247599]
[1646389606291,0.24738093,41633.0,41625.0,0.26930745]
[1646389606491,0.24738093,41633.0,41624.0,0.13247599]
[1646389606692,0.24738093,41633.0,41625.0,0.18474759]
[1646389607193,0.24738093,41633.0,41631.0,0.120152]
[1646389607392,0.365885,41632.0,41631.0,0.120152]
[1646389607593,0.24738093,41634.0,41631.0,0.120152]
[1646389607792,0.365885,41633.0,41631.0,0.120152]
[1646389607996,0.36317168,41635.0,41631.0,0.120152]
[1646389608193,0.365885,41634.0,41632.0,0.19064701]
[1646389608392,0.365885,41634.0,41632.0,0.24381379]
[1646389608594,0.29658538,41637.0,41632.0,0.24381379]
[1646389608794,0.365876,41636.0,41632.0,0.24381379]
[1646389609095,0.005425,41636.0,41634.0,0.21544458]
[1646389609494,0.005425,41636.0,41631.0,0.18647316]
[1646389609740,0.29658538,41637.0,41631.0,0.18647316]
[1646389609941,0.365879,41636.0,41631.0,0.30662516]
[1646389610550,0.365879,41636.0,41631.0,0.120152]
[1646389611146,0.19790446,41632.0,41631.0,0.120152]
[1646389612349,0.19790446,41632.0,41631.0,0.170152]
[1646389612548,0.56378346,41632.0,41631.0,0.170152]
[1646389612949,0.65612274,41636.0,41631.0,0.170152]
[1646389612950,0.365879,41634.0,41631.0,0.170152]
[1646389613151,0.365879,41634.0,41631.0,0.120152]
[1646389614100,0.365879,41634.0,41630.0,0.03770123]
[1646389614104,0.35953736,41633.0,41630.0,0.03770123]
[1646389614298,0.35953736,41633.0,41621.0,0.240305]
[1646389614299,0.69743738,41632.0,41621.0,0.240305]
[1646389614498,0.19793711,41628.0,41621.0,0.240305]
[1646389614700,0.74743738,41632.0,41621.0,0.240305]
[1646389614701,0.56381611,41627.0,41621.0,0.240305]
[1646389615099,0.19793711,41627.0,41621.0,0.240305]
[1646389615300,0.56381611,41627.0,41626.0,0.0601]
[1646389616700,0.365879,41627.0,41626.0,0.0601]
[1646389617346,0.365879,41628.0,41626.0,0.0601]
[1646389617946,0.61336845,41628.0,41626.0,0.0601]
[1646389618749,0.24748945,41629.0,41626.0,0.0601]
[1646389618948,0.61336845,41628.0,41626.0,0.0601]
[1646389619550,0.24748945,41627.0,41626.0,0.0601]
[1646389619750,0.54834145,41627.0,41626.0,0.0601]
[1646389620250,0.90787881,41627.0,41626.0,0.0601]
[1646389620456,0.71038936,41627.0,41626.0,0.0601]
[1646389622094,1.00697474,41627.0,41626.0,0.0601]
[1646389622494,0.71038936,41627.0,41626.0,0.0601]
[1646389622895,0.71038936,41627.0,41621.0,0.240305]
[1646389623097,0.24750102,41623.0,41621.0,0.240305]
[1646389623295,0.300852,41622.0,41621.0,0.240305]
[1646389623499,0.365879,41622.0,41621.0,0.240305]
[1646389623696,0.300852,41622.0,41621.0,0.240305]
[1646389623898,0.365879,41622.0,41621.0,0.240305]
[1646389624950,0.56385306,41622.0,41621.0,0.240305]
[1646389625151,0.19797406,41622.0,41621.0,0.240305]
[1646389625950,0.24750102,41624.0,41621.0,0.240305]
[1646389626154,0.19798797,41622.0,41621.0,0.240305]
[1646389627353,0.24750102,41623.0,41621.0,0.240305]
[1646389627554,0.19798,41622.0,41621.0,0.240305]
[1646389628355,0.24750102,41623.0,41621.0,0.240305]
[1646389628597,0.365879,41623.0,41621.0,0.240305]
[1646389629498,0.19804456,41622.0,41621.0,0.240305]
[1646389630998,0.15208417,41626.0,41621.0,0.240305]
[1646389631218,0.365879,41625.0,41621.0,0.240305]
[1646389631797,0.1,41628.0,41621.0,0.240305]
[1646389631999,0.365879,41627.0,41621.0,0.240305]
[1646389632248,0.415879,41627.0,41621.0,0.240305]
[1646389632449,0.05,41627.0,41621.0,0.240305]
[1646389632851,0.365879,41627.0,41621.0,0.39448162]
[1646389633252,0.05,41628.0,41622.0,0.07198461]
[1646389633649,0.34601627,41631.0,41622.0,0.07198461]
[1646389633850,0.39601627,41631.0,41622.0,0.07198461]
[1646389634349,0.39601627,41631.0,41628.0,0.349753]
[1646389634550,0.39601627,41631.0,41622.0,0.07198461]
[1646389634551,0.60192113,41625.0,41622.0,0.07198461]
[1646389635154,0.60192113,41625.0,41623.0,0.365879]
[1646389635751,0.60192113,41625.0,41623.0,0.1956616]
[1646389635996,0.60192113,41625.0,41624.0,0.355171]
[1646389636198,0.60192113,41625.0,41624.0,0.26143427]
[1646389638601,0.60192113,41625.0,41624.0,0.61660527]
[1646389638801,0.24143513,41625.0,41624.0,0.61660527]
[1646389639003,0.29714444,41632.0,41629.0,0.06970626]
[1646389639205,0.29714444,41633.0,41630.0,0.24130805]
[1646389639401,0.29714444,41634.0,41630.0,0.24130805]
[1646389639601,0.365915,41633.0,41630.0,0.24130805]
[1646389639848,0.29714444,41633.0,41630.0,0.24130805]
[1646389640049,0.24766567,41631.0,41630.0,0.18123005]
[1646389640750,0.24766567,41631.0,41629.0,0.120156]
[1646389640951,0.24766567,41630.0,41629.0,0.120156]
[1646389641952,0.365915,41630.0,41629.0,0.120156]
[1646389642554,0.24766567,41631.0,41629.0,0.120156]
[1646389642953,0.24766567,41630.0,41629.0,0.120156]
[1646389643353,0.29714444,41633.0,41629.0,0.120156]
[1646389643354,0.24766567,41631.0,41629.0,0.120156]
[1646389644096,0.365915,41630.0,41629.0,0.120156]
[1646389644303,0.24766567,41630.0,41629.0,0.170156]
[1646389644596,0.71305944,41630.0,41624.0,0.32153327]
[1646389644795,0.19804123,41625.0,41624.0,0.32153327]
[1646389645795,0.19804123,41626.0,41624.0,0.32153327]
[1646389645995,0.19804123,41627.0,41624.0,0.32153327]
[1646389646298,0.19804123,41627.0,41624.0,0.37153327]
[1646389646496,0.19804123,41627.0,41625.0,0.07153576]
[1646389646696,0.19804123,41629.0,41625.0,0.25177076]
[1646389646998,0.19804123,41629.0,41626.0,0.05]
[1646389648647,0.19804123,41628.0,41626.0,0.05]
[1646389649651,0.19804123,41629.0,41626.0,0.05]
[1646389650049,0.19804123,41628.0,41626.0,0.05]
[1646389651003,0.19804123,41627.0,41626.0,0.05]
[1646389652001,0.19804123,41628.0,41626.0,0.05]
[1646389653702,0.19804123,41629.0,41626.0,0.05]
[1646389655051,0.19804123,41628.0,41626.0,0.05]
[1646389655256,0.19804123,41629.0,41626.0,0.05]
[1646389656152,0.24756364,41631.0,41630.0,0.19310088]
[1646389656351,0.61347864,41631.0,41630.0,0.24310088]
[1646389656952,0.365915,41631.0,41630.0,0.24310088]
[1646389657154,0.24756364,41632.0,41630.0,0.24310088]
[1646389657354,0.24756364,41632.0,41630.0,0.19310088]
[1646389657552,0.365915,41631.0,41630.0,0.19310088]
[1646389658152,0.365915,41632.0,41630.0,0.19310088]
[1646389658602,0.24756364,41633.0,41630.0,0.19310088]
[1646389658802,0.365915,41632.0,41630.0,0.19310088]
[1646389660204,0.24756364,41633.0,41630.0,0.24310088]
[1646389660404,0.365915,41632.0,41630.0,0.24310088]
[1646389660706,0.365915,41632.0,41630.0,0.05]
[1646389660905,0.61347864,41632.0,41629.0,0.060081]
[1646389663048,0.365915,41632.0,41629.0,0.060081]
[1646389663245,0.24756364,41635.0,41629.0,0.060081]
[1646389663447,0.365915,41634.0,41629.0,0.060081]
[1646389664948,0.61347864,41634.0,41629.0,0.060081]
[1646389665546,0.365915,41632.0,41629.0,0.060081]
[1646389665746,0.365915,41632.0,41627.0,0.05]
[1646389666000,0.365915,41632.0,41627.0,0.110083]
[1646389666199,0.19790831,41631.0,41627.0,0.060083]
[1646389666400,0.365915,41630.0,41625.0,0.27139054]
[1646389666599,0.19790831,41631.0,41625.0,0.27139054]
[1646389667203,0.19790831,41631.0,41629.0,0.060081]
[1646389667404,0.365915,41630.0,41629.0,0.060081]
[1646389670354,0.19790831,41631.0,41629.0,0.060081]
[1646389670546,0.365915,41630.0,41629.0,0.060081]
[1646389670746,0.19790831,41631.0,41629.0,0.060081]
[1646389670947,0.365915,41630.0,41629.0,0.060081]
[1646389671147,0.005433,41630.0,41629.0,0.060081]
[1646389671348,0.19790831,41631.0,41629.0,0.060081]
[1646389672047,0.19790831,41632.0,41629.0,0.060081]
[1646389673047,0.19790831,41633.0,41629.0,0.060081]
[1646389673515,0.19790831,41632.0,41630.0,0.07323406]
[1646389673711,0.19790831,41633.0,41630.0,0.07323406]
[1646389673914,0.19790831,41633.0,41630.0,0.12323406]
[1646389674311,0.365905,41632.0,41630.0,0.12323406]
[1646389674711,0.19790831,41633.0,41630.0,0.05]
[1646389674911,0.55881331,41632.0,41629.0,0.060081]
[1646389675314,0.19790831,41631.0,41629.0,0.060081]
[1646389675815,0.19790831,41632.0,41629.0,0.060081]
[1646389676814,0.19790831,41633.0,41629.0,0.060081]
[1646389677265,0.19790831,41635.0,41630.0,0.365904]
[1646389677464,0.19790831,41635.0,41633.0,0.01650699]
[1646389677663,0.24756364,41638.0,41634.0,0.365866]
[1646389677861,0.24756364,41639.0,41637.0,0.07243364]
[1646389678065,0.24756364,41639.0,41638.0,0.354618]
[1646389678361,0.24756364,41640.0,41637.0,0.39426856]
[1646389678961,0.24756364,41640.0,41638.0,0.19310605]
[1646389679362,0.001,41641.0,41639.0,0.76411955]
[1646389679562,0.0121,41643.0,41641.0,1.4]
[1646389679763,0.0121,41643.0,41642.0,0.77562362]
[1646389679963,0.24767698,41648.0,41644.0,0.354475]
[1646389680165,0.0011,41650.0,41646.0,0.365834]
[1646389680363,0.0021,41651.0,41647.0,0.0481]
[1646389680564,0.0011,41653.0,41650.0,1.4]
[1646389680766,0.0011,41653.0,41651.0,1.57479686]
[1646389681020,0.0011,41661.0,41659.0,0.05487936]
[1646389681215,0.0011,41661.0,41660.0,0.56271054]
[1646389681412,0.0011,41665.0,41660.0,0.20106192]
[1646389681813,0.0011,41665.0,41660.0,0.25106192]
[1646389682212,0.0011,41665.0,41661.0,0.36164862]
[1646389682414,0.0011,41665.0,41662.0,0.35431]
[1646389682615,0.0011,41665.0,41662.0,0.40431]
[1646389682814,0.0011,41665.0,41662.0,0.76580702]
[1646389683014,0.0011,41665.0,41662.0,0.81390702]
[1646389683215,0.0011,41665.0,41662.0,0.87798234]
[1646389684013,0.0011,41665.0,41662.0,0.51648532]
[1646389686654,0.0011,41665.0,41662.0,0.74390962]
[1646389687055,0.0011,41665.0,41663.0,0.06407532]
[1646389687255,0.0011,41667.0,41663.0,1.05896356]
[1646389687455,0.0011,41667.0,41666.0,0.41834832]
[1646389687755,0.0011,41667.0,41666.0,0.51644832]
[1646389687955,0.139252,41668.0,41666.0,0.51644832]
[1646389688156,0.139252,41668.0,41667.0,0.06407532]
[1646389688355,0.0011,41670.0,41667.0,0.78321532]
[1646389688602,0.0011,41670.0,41669.0,0.06407532]
[1646389688799,0.0011,41670.0,41669.0,0.46642032]
[1646389689005,0.0011,41670.0,41669.0,0.87791734]
[1646389689405,0.0011,41670.0,41669.0,1.61161734]
[1646389690402,0.0011,41670.0,41669.0,2.11161734]
[1646389690804,0.0011,41676.0,41669.0,2.11161734]
[1646389690805,0.0033,41673.0,41669.0,2.11161734]
[1646389691003,0.0033,41673.0,41669.0,2.10754702]
[1646389691605,0.0033,41673.0,41669.0,2.13157702]
[1646389692005,0.0033,41673.0,41672.0,0.7337]
[1646389692253,0.0027,41678.0,41673.0,2.24592541]
[1646389692454,0.0027,41678.0,41674.0,0.108102]
[1646389692653,0.0027,41678.0,41675.0,0.71568802]
[1646389692854,0.0027,41678.0,41675.0,1.54748802]
[1646389693053,0.0027,41678.0,41676.0,0.18609596]
[1646389693253,0.0027,41678.0,41677.0,0.72728502]
[1646389693454,0.0027,41678.0,41677.0,0.36149702]
[1646389694154,0.0027,41678.0,41677.0,0.72728502]
[1646389694554,0.0027,41678.0,41677.0,0.36149702]
[1646389695157,0.0027,41678.0,41676.0,0.47329412]
[1646389695355,0.0027,41678.0,41677.0,0.365788]
[1646389695555,0.0027,41678.0,41677.0,0.72728502]
[1646389695756,0.0027,41678.0,41677.0,0.365788]
[1646389696422,0.0027,41678.0,41676.0,0.28719816]
[1646389697021,0.0027,41678.0,41676.0,0.45436038]
[1646389697921,0.0027,41678.0,41676.0,0.28719816]
[1646389699125,0.0027,41678.0,41675.0,0.5981]
[1646389699525,0.0027,41678.0,41675.0,0.5481]
[1646389699746,0.0027,41678.0,41675.0,0.0481]
[1646389700148,0.0027,41678.0,41676.0,0.365788]
[1646389700553,0.0027,41678.0,41675.0,0.0481]
[1646389701250,0.40193602,41670.0,41668.0,0.180047]
[1646389701455,0.40193602,41670.0,41669.0,0.47796332]
[1646389701649,0.40193602,41670.0,41669.0,1.24978685]
[1646389702651,0.40193602,41670.0,41669.0,1.458536]
[1646389702851,0.40193602,41670.0,41669.0,1.24978685]
[1646389703601,0.40193602,41670.0,41669.0,0.97796332]
[1646389703800,0.40193602,41670.0,41669.0,0.865788]
[1646389705005,0.40193602,41670.0,41669.0,0.5]
[1646389705203,0.7640668,41670.0,41669.0,0.5]
[1646389705403,0.40193602,41670.0,41669.0,0.5]
[1646389705604,0.76772402,41670.0,41669.0,0.5]
[1646389706003,0.76772402,41670.0,41662.0,0.88407825]
[1646389706206,0.7640668,41670.0,41662.0,0.67187825]
[1646389706904,0.7640668,41670.0,41662.0,0.64687825]
[1646389707970,0.7880968,41670.0,41662.0,0.64687825]
[1646389708170,0.7880968,41670.0,41662.0,0.475]
[1646389708373,0.839818,41669.0,41662.0,0.475]
[1646389708774,0.05,41668.0,41662.0,0.475]
[1646389708970,0.38460402,41667.0,41658.0,0.70839985]
[1646389709174,0.365788,41666.0,41662.0,0.21758252]
[1646389709372,0.36057402,41667.0,41663.0,0.05577641]
[1646389709572,0.05,41668.0,41665.0,0.20699934]
[1646389709771,0.76251004,41670.0,41665.0,0.20699934]
[1646389709772,0.81251004,41670.0,41665.0,0.20699934]
[1646389710172,0.76251004,41670.0,41665.0,0.20699934]
[1646389710374,0.40193602,41670.0,41665.0,0.20699934]
[1646389711426,0.39193602,41670.0,41665.0,0.20699934]
[1646389711824,0.39193602,41670.0,41665.0,0.26702234]
[1646389712222,0.39193602,41670.0,41666.0,0.365788]
[1646389713124,0.39193602,41670.0,41665.0,0.26702234]
[1646389713524,0.39193602,41670.0,41666.0,0.365788]
[1646389713724,0.39193602,41670.0,41665.0,0.26702234]
[1646389715061,0.39193602,41670.0,41667.0,0.189522]
[1646389715860,0.39193602,41670.0,41669.0,0.60741093]
[1646389716660,0.39193602,41670.0,41669.0,0.365762]
[1646389717464,0.39193602,41670.0,41668.0,0.5]
[1646389718702,0.75251004,41670.0,41668.0,0.5]
[1646389718902,0.36057402,41669.0,41668.0,0.5]
[1646389719504,0.02403,41668.0,41661.0,0.25487863]
[1646389719705,0.36057402,41669.0,41661.0,0.25487863]
[1646389719903,0.38460402,41669.0,41661.0,0.32331459]
[1646389720102,0.38460402,41669.0,41661.0,0.06843596]
[1646389720302,0.38460402,41669.0,41661.0,0.12846896]
[1646389720601,0.36057402,41669.0,41662.0,0.5]
[1646389721403,0.55832,41669.0,41662.0,0.5]
[1646389722853,0.19774598,41669.0,41662.0,0.5]
[1646389723054,0.613712,41670.0,41662.0,0.5]
[1646389723252,0.19774598,41669.0,41662.0,0.5]
[1646389723454,0.19774598,41666.0,41662.0,0.5]
[1646389723654,0.19774598,41666.0,41664.0,0.06267703]
[1646389723855,0.19774598,41666.0,41665.0,0.189564]
[1646389724054,0.50601496,41664.0,41663.0,0.5]
[1646389724254,0.50601496,41664.0,41663.0,0.93469712]
[1646389725557,0.70376094,41664.0,41663.0,0.5]
[1646389725755,0.70376094,41664.0,41657.0,0.18063308]
[1646389726003,0.70376094,41664.0,41661.0,0.060036]
[1646389727006,0.70376094,41664.0,41662.0,0.365788]
[1646389727605,0.70376094,41664.0,41661.0,0.060036]
[1646389727806,0.19774598,41663.0,41661.0,0.060036]
[1646389728406,0.70376094,41664.0,41661.0,0.060036]
[1646389730251,0.70376094,41664.0,41662.0,0.365788]
[1646389730451,0.70376094,41664.0,41661.0,0.060036]
[1646389730651,0.70376094,41664.0,41662.0,0.365788]
[1646389731051,0.70376094,41664.0,41661.0,0.060036]
[1646389731251,0.70376094,41664.0,41662.0,0.365788]
[1646389732352,0.50601496,41664.0,41662.0,0.365788]
[1646389732555,0.50601496,41664.0,41661.0,0.060036]
[1646389732753,0.70376094,41664.0,41662.0,0.365788]
[1646389732953,0.70376094,41664.0,41661.0,0.060036]
[1646389733254,0.70376094,41664.0,41662.0,0.18958]
[1646389733702,0.14587596,41664.0,41662.0,0.18958]
[1646389734202,0.19774598,41666.0,41662.0,0.18958]
[1646389734704,0.19774598,41667.0,41663.0,0.060021]
[1646389734901,0.39293602,41670.0,41664.0,0.84118576]
[1646389734902,0.19774598,41668.0,41664.0,0.84118576]
[1646389735602,0.19774598,41668.0,41666.0,0.21193128]
[1646389735805,0.19774598,41668.0,41667.0,0.189553]
[1646389736004,0.19774598,41668.0,41666.0,0.21193128]
[1646389736203,0.19774598,41668.0,41667.0,0.365788]
[1646389736403,0.19774598,41668.0,41666.0,0.21193128]
[1646389736702,0.19774598,41668.0,41667.0,0.365788]
[1646389736902,0.19774598,41668.0,41664.0,0.47540676]
[1646389737102,0.19774598,41668.0,41665.0,0.365788]
[1646389737870,0.19774598,41668.0,41666.0,0.16088936]
[1646389738068,0.19774598,41668.0,41667.0,0.189534]
[1646389738267,0.19774598,41668.0,41667.0,0.365788]
[1646389738468,0.19774598,41669.0,41667.0,0.365788]
[1646389739271,0.19774598,41669.0,41666.0,0.060015]
[1646389739469,0.19774598,41669.0,41665.0,0.120029]
[1646389739470,0.19774598,41669.0,41667.0,0.189505]
[1646389739670,0.19774598,41669.0,41668.0,0.365788]
[1646389739870,0.63911504,41670.0,41666.0,0.365788]
[1646389740072,0.1981165,41667.0,41664.0,0.159771]
[1646389740272,0.1981165,41667.0,41665.0,0.365788]
[1646389740473,0.1981165,41666.0,41665.0,0.365788]
[1646389740872,0.24717902,41667.0,41665.0,0.365788]
[1646389741106,0.24717902,41667.0,41658.0,0.0481]
[1646389741305,0.19810998,41665.0,41659.0,0.365788]
[1646389741903,0.19810998,41665.0,41661.0,0.0595669]
[1646389742102,0.35665091,41669.0,41662.0,0.189615]
[1646389742103,0.19810998,41664.0,41662.0,0.189615]
[1646389742304,0.19810998,41664.0,41663.0,0.25263836]
[1646389742505,0.19810998,41664.0,41663.0,0.365752]
[1646389743704,0.19810998,41664.0,41663.0,0.64183281]
[1646389743908,0.19810998,41665.0,41663.0,0.64183281]
[1646389744105,0.19810998,41665.0,41664.0,0.189605]
[1646389745056,0.19810998,41666.0,41664.0,0.55214316]
[1646389745253,0.19810998,41668.0,41665.0,0.66309236]
[1646389745454,0.19810998,41669.0,41667.0,0.06407532]
[1646389745757,0.19810998,41669.0,41668.0,0.30175832]
[1646389746758,0.63911504,41670.0,41668.0,0.30175832]
[1646389746953,0.39193602,41670.0,41669.0,0.06407532]
[1646389747155,0.39193602,41670.0,41669.0,0.42977132]
[1646389747555,0.39193602,41670.0,41669.0,0.48473586]
[1646389747957,0.39193602,41670.0,41669.0,1.67907402]
[1646389747958,0.59007206,41670.0,41669.0,1.67907402]
[1646389748159,0.19813604,41674.0,41670.0,1.4]
[1646389748361,0.19813604,41677.0,41672.0,0.02403]
[1646389748619,0.19813604,41677.0,41675.0,0.189545]
[1646389748820,0.24827902,41679.0,41677.0,0.01596296]
[1646389748821,0.0011,41679.0,41677.0,0.01596296]
[1646389749026,0.0011,41679.0,41678.0,0.413711]
[1646389749419,0.0011,41679.0,41678.0,0.58966216]
[1646389749620,0.0011,41679.0,41678.0,0.47778632]
[1646389750420,0.0011,41679.0,41678.0,0.84242588]
[1646389750820,0.0011,41679.0,41678.0,0.47778632]
[1646389752452,0.0011,41679.0,41678.0,0.46539532]
[1646389753056,0.0011,41679.0,41678.0,1.56203984]
[1646389753257,0.0011,41679.0,41678.0,1.19909532]
[1646389753658,0.0011,41685.0,41680.0,0.144014]
[1646389753856,0.0011,41685.0,41681.0,0.41582289]
[1646389755059,0.0011,41685.0,41684.0,0.24241797]
[1646389755256,0.0011,41685.0,41684.0,0.64368997]
[1646389755456,0.0011,41685.0,41684.0,0.401272]
[1646389755856,0.0011,41685.0,41682.0,0.189507]
[1646389756104,0.0011,41685.0,41684.0,0.0481]
[1646389756308,0.0011,41685.0,41684.0,0.237597]
[1646389756704,0.0011,41685.0,41684.0,0.0481]
[1646389756904,0.09619999,41683.0,41680.0,0.05]
[1646389757107,0.09619999,41683.0,41677.0,0.5]
[1646389757306,0.09619999,41683.0,41671.0,0.2418]
[1646389757307,0.15621517,41683.0,41671.0,0.2418]
[1646389757506,0.40621517,41683.0,41671.0,0.30181]
[1646389757704,0.25,41679.0,41671.0,0.2418]
[1646389757904,0.25,41679.0,41670.0,0.5]
[1646389758106,0.19813604,41682.0,41671.0,0.189566]
[1646389758304,0.19813604,41682.0,41670.0,0.36147582]
[1646389758507,0.36836603,41683.0,41670.0,0.36147582]
[1646389758705,0.36836603,41683.0,41671.0,0.06001]
[1646389759105,0.61836603,41683.0,41671.0,0.06001]
[1646389759506,0.15,41682.0,41669.0,0.318088]
[1646389759751,0.2,41676.0,41669.0,0.318088]
[1646389760152,0.45,41675.0,41669.0,0.318088]
[1646389760351,0.45,41675.0,41669.0,0.19807]
[1646389760554,0.45,41675.0,41669.0,0.258089]
[1646389760751,0.2,41676.0,41669.0,0.258089]
[1646389761152,0.45,41675.0,41667.0,0.120022]
[1646389761353,0.45,41675.0,41664.0,0.12004]
[1646389762153,0.45,41675.0,41667.0,0.2804658]
[1646389762553,0.36147582,41674.0,41667.0,0.2804658]
[1646389762953,0.61147582,41674.0,41667.0,0.2804658]
[1646389763154,0.45,41674.0,41669.0,0.060021]
[1646389764405,0.38550582,41678.0,41669.0,0.120041]
[1646389764406,0.36147582,41678.0,41669.0,0.120041]
[1646389764607,0.45,41674.0,41669.0,0.38381349]
[1646389764807,0.45,41674.0,41670.0,0.189582]
[1646389765006,0.45,41674.0,41671.0,0.189577]
[1646389765206,0.45,41674.0,41669.0,0.38381349]
[1646389765408,0.45,41675.0,41673.0,0.1721915]
[1646389765906,0.36147582,41678.0,41673.0,0.1721915]
[1646389765907,0.81147582,41678.0,41673.0,0.1721915]
[1646389766309,0.19813604,41682.0,41674.0,0.18956]
[1646389766507,0.45767581,41683.0,41673.0,0.2922095]
[1646389766709,0.09619999,41683.0,41674.0,0.237654]
[1646389767355,0.09619999,41683.0,41675.0,0.19609438]
[1646389767557,0.09619999,41683.0,41676.0,0.189543]
[1646389767760,0.08619999,41683.0,41680.0,0.1971042]
[1646389767959,0.08619999,41683.0,41681.0,0.189516]
[1646389768164,0.4511,41685.0,41683.0,0.189504]
[1646389768165,0.0011,41685.0,41683.0,0.189504]
[1646389768366,0.0011,41685.0,41684.0,0.68717914]
[1646389768658,0.0011,41685.0,41684.0,0.59907382]
[1646389768858,0.0011,41685.0,41684.0,1.33277382]
[1646389769059,2.9805,41691.0,41689.0,0.05358562]
[1646389769260,2.9805,41691.0,41690.0,0.237561]
[1646389769459,2.9805,41691.0,41690.0,0.56481265]